bitfinex/quotes_SOLUSD_20250207
["timestamp","ask_amount","ask_price","bid_price","bid_amount"]
[1738914863338,1.0,192.62,192.6,24.68028361]
[1738914863509,82.1,192.66,192.63,20.0]
[1738914863510,1.0,192.64,192.63,20.0]
[1738914863712,1.0,192.64,192.63,39.42518361]
[1738914864226,1.0,192.64,192.63,20.0]
[1738914864410,1.0,192.64,192.63,39.42518361]
[1738914865619,82.1,192.66,192.63,39.42518361]
[1738914865620,1.0,192.65,192.63,44.61638361]
[1738914866022,1.0,192.64,192.63,44.61638361]
[1738914866904,1.0,192.65,192.63,44.61638361]
[1738914867103,1.0,192.64,192.63,44.61638361]
[1738914868632,1.0,192.65,192.63,44.61638361]
[1738914868835,83.1,192.66,192.64,19.42518361]
[1738914869038,83.1,192.66,192.65,19.42518361]
[1738914869222,1.0,192.65,192.64,19.42518361]
[1738914871337,1.03,192.65,192.64,24.61618361]
[1738914871708,1.03,192.65,192.64,5.191]
[1738914871923,1.03,192.65,192.64,24.61618361]
[1738914873032,1.0,192.64,192.61,19.42518361]
[1738914873331,1.0,192.62,192.6,5.2548]
[1738914874024,1.0,192.61,192.6,0.063]
[1738914874331,20.42518361,192.61,192.6,0.063]
[1738914876334,1.0,192.61,192.6,0.063]
[1738914877636,20.42518361,192.61,192.6,0.063]
[1738914882544,1.0,192.61,192.6,0.063]
[1738914888241,1.0,192.61,192.6,20.063]
[1738914889515,1.0,192.61,192.6,25.2551]
[1738914889919,1.0,192.61,192.6,0.063]
[1738914891825,21.39885682,192.61,192.6,0.063]
[1738914892252,21.77532682,192.61,192.6,0.063]
[1738914892439,24.31142682,192.61,192.6,0.063]
[1738914892656,62.82105896,192.61,192.6,0.063]
[1738914893727,1.12549,192.57,192.56,0.063]
[1738914894036,21.52469778,192.57,192.56,0.063]
[1738914894339,35.18752631,192.57,192.56,0.063]
[1738914894542,36.18752631,192.57,192.56,0.063]
[1738914894866,37.18752631,192.57,192.56,0.063]
[1738914896261,39.86112631,192.57,192.56,0.063]
[1738914901748,40.86112631,192.57,192.56,0.063]
[1738914903260,39.86112631,192.57,192.56,0.063]
[1738914903498,40.86112631,192.57,192.56,0.063]
[1738914903769,40.86112631,192.57,192.49,20.063]
[1738914903770,35.21350214,192.54,192.49,0.063]
[1738914903948,43.29972021,192.54,192.49,0.063]
[1738914904139,1.12549,192.5,192.49,0.063]
[1738914904341,34.93696318,192.5,192.49,0.063]
[1738914904963,54.36214679,192.5,192.49,0.063]
[1738914905166,34.93696318,192.5,192.49,0.063]
[1738914905871,39.61226318,192.5,192.49,0.063]
[1738914907450,34.93696318,192.5,192.49,0.063]
[1738914907847,20.42518361,192.5,192.49,0.063]
[1738914909369,1.0,192.5,192.49,0.063]
[1738914911372,39.86292312,192.5,192.49,0.063]
[1738914912373,59.28810673,192.5,192.49,0.063]
[1738914912860,39.86292312,192.5,192.49,0.063]
[1738914913268,60.28810673,192.5,192.49,0.063]
[1738914913462,61.28810673,192.5,192.49,0.063]
[1738914913769,60.28810673,192.5,192.49,0.063]
[1738914913959,59.28810673,192.5,192.49,0.063]
[1738914914268,60.28810673,192.5,192.49,0.063]
[1738914914774,40.86292312,192.5,192.49,0.063]
[1738914917671,39.86292312,192.5,192.49,0.063]
[1738914920347,21.39930459,192.5,192.49,0.063]
[1738914920858,20.42518361,192.5,192.49,0.063]
[1738914923866,34.21350214,192.5,192.49,0.063]
[1738914924070,38.88880214,192.5,192.49,0.063]
[1738914934995,60.28838287,192.5,192.49,0.063]
[1738914935883,39.86319926,192.5,192.49,0.063]
[1738914936181,59.28838287,192.5,192.49,0.063]
[1738914936385,39.86319926,192.5,192.49,0.063]
[1738914936883,60.28838287,192.5,192.49,0.063]
[1738914937091,61.28838287,192.5,192.49,0.063]
[1738914939386,1.12549,192.45,192.44,0.063]
[1738914939591,37.18814637,192.45,192.44,0.063]
[1738914939795,14.66282853,192.41,192.4,0.063]
[1738914940088,56.61363017,192.41,192.4,0.063]
[1738914941379,61.29113017,192.41,192.4,0.063]
[1738914941686,1.25098,192.39,192.38,0.063]
[1738914941873,21.65118231,192.39,192.38,0.063]
[1738914942389,36.18852084,192.39,192.38,0.063]
[1738914942595,37.18852084,192.39,192.38,0.063]
[1738914943294,37.18852084,192.39,192.29,0.063]
[1738914943295,1.0,192.3,192.29,0.063]
[1738914943591,20.67616361,192.3,192.29,0.063]
[1738914944185,34.21350214,192.3,192.29,0.063]
[1738914944394,35.18896541,192.3,192.29,0.063]
[1738914944780,35.18896541,192.3,192.18,6.7136]
[1738914944781,1.0,192.19,192.18,6.7136]
[1738914945387,1.0,192.19,192.18,1.5102]
[1738914945779,1.0,192.2,192.19,25.2031]
[1738914945990,1.0,192.21,192.19,25.2031]
[1738914947293,1.0,192.2,192.19,25.2031]
[1738914947495,1.0,192.21,192.19,25.2031]
[1738914947795,1.0,192.24,192.19,44.62828361]
[1738914947991,1.0,192.23,192.19,44.62828361]
[1738914948189,1.0,192.22,192.19,44.62828361]
[1738914948390,1.0,192.24,192.23,20.0]
[1738914949294,1.0,192.26,192.24,20.0]
[1738914949594,1.0,192.27,192.25,19.42518361]
[1738914950002,1.0,192.26,192.24,19.42518361]
[1738914950503,1.0,192.27,192.25,19.42518361]
[1738914950875,1.0,192.27,192.26,5.2012]
[1738914951390,1.0,192.28,192.26,5.2012]
[1738914951599,1.0,192.29,192.27,19.42518361]
[1738914951990,1.0,192.29,192.28,19.42518361]
[1738914953207,1.0,192.31,192.3,20.0]
[1738914953508,1.0,192.31,192.3,39.42518361]
[1738914954174,82.1,192.4,192.3,39.42518361]
[1738914954385,20.40001429,192.4,192.33,19.42518361]
[1738914955371,20.40001429,192.4,192.34,5.1991]
[1738914955982,19.42518361,192.37,192.33,20.0]
[1738914956577,19.42518361,192.35,192.29,5.2004]
[1738914956776,14.76326601,192.36,192.29,5.2004]
[1738914956777,20.40025055,192.34,192.29,5.2004]
[1738914957278,19.42518361,192.37,192.32,20.0]
[1738914957509,19.42518361,192.37,192.32,25.1994]
[1738914958006,19.42518361,192.37,192.32,5.1994]
[1738914958702,82.1,192.38,192.3,20.0]
[1738914958914,19.42518361,192.34,192.28,5.2637]
[1738914959203,19.67616361,192.32,192.28,0.063]
[1738914959406,19.42518361,192.3,192.28,0.063]
[1738914959706,82.1,192.29,192.28,0.063]
[1738914961094,82.1,192.29,192.28,20.063]
[1738914961403,82.1,192.29,192.28,25.2637]
[1738914962900,82.1,192.29,192.28,44.68888361]
[1738914963304,101.52518361,192.38,192.28,44.68888361]
[1738914963530,82.1,192.37,192.3,19.42518361]
[1738914963678,19.42518361,192.35,192.28,44.68888361]
[1738914964708,101.52518361,192.37,192.3,19.42518361]
[1738914964893,82.13,192.37,192.31,19.42518361]
[1738914965882,82.13,192.37,192.32,5.1996]
[1738914966083,82.13,192.37,192.32,24.62478361]
[1738914966084,82.1,192.36,192.32,24.62478361]
[1738914967418,82.1,192.36,192.33,19.42518361]
[1738914967917,82.1,192.36,192.31,5.1999]
[1738914967918,0.03,192.37,192.35,19.42518361]
[1738914968101,0.03,192.37,192.36,19.42518361]
[1738914969821,0.03,192.37,192.36,24.62368361]
[1738914971518,83.07454128,192.45,192.39,20.0]
[1738914971726,82.13,192.49,192.44,19.42518361]
[1738914971928,82.1,192.48,192.44,19.42518361]
[1738914972803,82.1,192.48,192.46,19.42518361]
[1738914973197,82.1,192.48,192.47,19.42518361]
[1738914973404,0.03,192.49,192.48,5.1953]
[1738914973712,0.03,192.49,192.48,24.62048361]
[1738914976424,0.03,192.53,192.51,20.0]
[1738914976627,0.03,192.53,192.52,19.42518361]
[1738914977517,0.03,192.53,192.52,24.61938361]
[1738914985829,0.03,192.57,192.55,20.0]
[1738914986057,0.03,192.57,192.56,19.42518361]
[1738914987914,0.03,192.57,192.56,24.61828361]
[1738914989239,0.03,192.6,192.59,20.0]
[1738914989439,0.03,192.6,192.59,39.42518361]
[1738914989851,0.03,192.6,192.59,44.61748361]
[1738914990437,0.03,192.64,192.59,44.61748361]
[1738914990641,0.03,192.64,192.63,19.42518361]
[1738914991751,0.03,192.65,192.63,19.42518361]
[1738914991945,0.03,192.65,192.64,19.42518361]
[1738914993147,0.03,192.65,192.64,24.61618361]
[1738914994654,0.03,192.65,192.59,19.42518361]
[1738914994833,0.03,192.65,192.6,20.0]
[1738914995149,0.03,192.65,192.62,19.42518361]
[1738914995340,0.03,192.65,192.63,19.42518361]
[1738914995518,0.03,192.65,192.64,19.42518361]
[1738914996548,0.03,192.65,192.64,24.61618361]
[1738914997048,0.03,192.65,192.6,19.42518361]
[1738914997240,0.03,192.65,192.63,20.0]
[1738914997442,0.03,192.65,192.61,19.42518361]
[1738914998026,0.03,192.65,192.64,20.0]
[1738914998957,0.03,192.65,192.64,39.42518361]
[1738915000245,0.03,192.65,192.64,44.61618361]
[1738915001238,0.03,192.65,192.64,25.191]
[1738915001734,0.03,192.65,192.64,44.61618361]
[1738915020470,82.1,192.71,192.64,58.71917361]
[1738915020667,0.03,192.73,192.7,19.42518361]
[1738915020843,0.03,192.73,192.71,19.42518361]
[1738915021565,0.03,192.73,192.71,24.61408361]
[1738915021763,0.03,192.73,192.71,20.0]
[1738915022269,0.03,192.73,192.7,20.0]
[1738915022456,0.03,192.73,192.71,19.42518361]
[1738915024363,0.03,192.73,192.72,5.1888]
[1738915025561,0.03,192.73,192.72,19.42518361]
[1738915026352,0.03,192.77,192.75,20.0]
[1738915026667,0.03,192.77,192.76,19.42518361]
[1738915027553,0.03,192.77,192.76,24.61288361]
[1738915028645,0.03,192.77,192.76,5.1877]
[1738915028845,0.03,192.77,192.76,20.0]
[1738915029076,0.03,192.77,192.72,5.1888]
[1738915029265,0.03,192.77,192.72,24.61398361]
[1738915029762,0.03,192.77,192.73,19.42518361]
[1738915030266,0.03,192.77,192.73,24.61348361]
[1738915030670,0.03,192.77,192.74,19.42518361]
[1738915030868,0.03,192.77,192.75,19.42518361]
[1738915031053,0.03,192.77,192.73,24.61348361]
[1738915031250,0.03,192.77,192.73,5.1883]
[1738915032671,0.03,192.77,192.73,24.61348361]
[1738915033280,0.03,192.77,192.74,19.42518361]
[1738915033441,0.03,192.77,192.76,20.0]
[1738915033648,0.03,192.77,192.76,39.42518361]
[1738915034544,0.03,192.77,192.76,44.61288361]
[1738915036269,0.03,192.8,192.76,44.61288361]
[1738915036451,0.03,192.8,192.79,19.42518361]
[1738915037457,0.03,192.8,192.79,24.61208361]
[1738915038878,0.03,192.8,192.79,5.1869]
[1738915039181,0.03,192.8,192.79,24.61208361]
[1738915046108,0.03,192.8,192.79,19.42518361]
[1738915046389,0.03,192.8,192.77,5.1873]
[1738915046681,0.03,192.8,192.76,5.2506]
[1738915048084,0.03,192.8,192.76,0.063]
[1738915048085,21.01808361,192.79,192.76,0.063]
[1738915048261,1.5929,192.79,192.76,0.063]
[1738915048979,1.5929,192.79,192.78,20.0]
[1738915049978,1.5929,192.79,192.76,0.063]
[1738915050178,1.5929,192.79,192.76,5.2507]
[1738915050485,1.5929,192.79,192.76,24.67588361]
[1738915050789,0.03,192.8,192.77,19.42518361]
[1738915050991,0.03,192.8,192.79,20.0]
[1738915051370,0.03,192.8,192.79,39.42518361]
[1738915051583,0.03,192.8,192.79,20.0]
[1738915051785,0.03,192.8,192.76,24.67588361]
[1738915052177,0.03,192.8,192.79,20.0]
[1738915052379,0.03,192.8,192.78,19.42518361]
[1738915053285,0.03,192.8,192.79,44.61208361]
[1738915058701,0.03,192.8,192.79,37.58834424]
[1738915062406,0.03,192.8,192.79,20.0]
[1738915065702,0.03,192.8,192.79,32.40144424]
[1738915067404,0.03,192.8,192.79,37.58834424]
[1738915073020,0.03,192.8,192.79,87.1941212]
[1738915073184,0.0001,192.8,192.79,87.3196112]
[1738915073581,0.0001,192.8,192.79,88.6960812]
[1738915077586,0.03,192.84,192.8,0.12549]
[1738915077801,0.03,192.84,192.83,12.40144424]
[1738915078407,0.03,192.84,192.83,17.58734424]
[1738915079387,0.03,192.84,192.83,5.1859]
[1738915079604,0.03,192.84,192.83,17.58734424]
[1738915085601,0.03,192.86,192.85,20.0]
[1738915085805,0.03,192.88,192.85,32.40144424]
[1738915086008,0.03,192.88,192.86,32.40144424]
[1738915087721,0.03,192.88,192.86,37.58654424]
[1738915088904,0.03,192.93,192.87,1.50196]
[1738915089211,0.03,192.93,192.92,20.0]
[1738915089410,0.03,192.93,192.92,32.40144424]
[1738915089923,0.03,192.93,192.91,17.58514424]
[1738915090221,0.03,192.93,192.91,5.1837]
[1738915091820,0.03,192.93,192.91,12.40144424]
[1738915093631,0.03,192.93,192.92,20.0]
[1738915096223,0.03,192.93,192.87,12.40144424]
[1738915096394,0.03,192.93,192.9,20.0]
[1738915096395,82.1,192.92,192.9,20.0]
[1738915097431,1.6192,192.91,192.85,12.40144424]
[1738915097637,12.40144424,192.9,192.85,5.1851]
[1738915097797,12.40144424,192.9,192.84,5.1856]
[1738915098300,12.40144424,192.9,192.87,20.0]
[1738915098515,12.40144424,192.9,192.83,5.1859]
[1738915098804,82.1,192.89,192.84,12.40144424]
[1738915100126,82.1,192.89,192.87,20.0]
[1738915100842,82.1,192.88,192.87,20.0]
[1738915101206,82.1,192.88,192.84,12.40144424]
[1738915101513,82.1,192.88,192.82,12.40144424]
[1738915101713,82.1,192.87,192.85,20.0]
[1738915103137,82.1,192.87,192.8,1.38155011]
[1738915103138,0.37647,192.85,192.8,0.063]
[1738915103441,12.40144424,192.81,192.8,0.063]
[1738915103606,28.58734561,192.81,192.8,0.063]
[1738915103937,13.95174424,192.81,192.8,0.063]
[1738915104142,27.61457277,192.81,192.8,0.063]
[1738915104639,0.25098,192.79,192.77,0.063]
[1738915104815,26.78625718,192.78,192.77,0.063]
[1738915105345,13.41184853,192.78,192.77,0.063]
[1738915105516,0.97290643,192.79,192.77,0.063]
[1738915105720,6.3105,192.8,192.77,0.063]
[1738915107012,19.72234853,192.8,192.77,0.063]
[1738915107216,0.97276582,192.79,192.77,0.063]
[1738915107538,25.81329277,192.78,192.77,0.063]
[1738915107741,26.06427277,192.78,192.77,0.063]
[1738915108815,30.73277277,192.78,192.77,0.063]
[1738915109230,30.85826277,192.78,192.77,0.063]
[1738915110744,37.85657576,192.78,192.77,0.063]
[1738915115333,35.24988046,192.78,192.77,0.063]
[1738915122929,37.24988046,192.78,192.77,0.063]
[1738915123129,15.78831853,192.77,192.76,0.063]
[1738915123434,36.16125733,192.77,192.76,0.063]
[1738915123752,0.25098,192.71,192.65,0.063]
[1738915123952,19.39975723,192.69,192.65,0.063]
[1738915124124,19.39975723,192.67,192.65,0.063]
[1738915125145,19.39975723,192.66,192.65,0.063]
[1738915125343,19.39975723,192.68,192.65,0.063]
[1738915126557,20.37310423,192.68,192.65,0.063]
[1738915127265,13.41184853,192.7,192.65,0.063]
[1738915127266,19.39975723,192.7,192.65,0.063]
[1738915129141,82.1,192.66,192.65,0.063]
[1738915131057,82.1,192.7,192.65,19.46275723]
[1738915131360,82.1,192.7,192.66,19.39975723]
[1738915132233,82.1,192.7,192.66,24.59005723]
[1738915132660,82.1,192.7,192.66,5.1903]
[1738915134057,82.1,192.7,192.65,12.48339233]
[1738915134259,82.1,192.7,192.65,5.2537]
[1738915134958,0.97320014,192.69,192.65,0.063]
[1738915135150,83.07320014,192.69,192.65,0.063]
[1738915135348,95.49359247,192.69,192.65,0.063]
[1738915135558,94.52039233,192.69,192.65,0.063]
[1738915136062,83.07326678,192.69,192.65,20.063]
[1738915136269,94.52039233,192.69,192.65,20.063]
[1738915136959,82.1,192.69,192.65,20.063]
[1738915137665,94.52039233,192.69,192.65,20.063]
[1738915137966,82.1,192.69,192.65,12.48339233]
[1738915138351,82.1,192.69,192.65,17.67409233]
[1738915139370,82.1,192.69,192.68,12.42039233]
[1738915139548,82.1,192.74,192.68,12.42039233]
[1738915139748,82.1,192.73,192.69,12.42039233]
[1738915140239,82.1,192.73,192.68,32.42039233]
[1738915140754,82.1,192.73,192.69,5.1896]
[1738915142372,82.1,192.72,192.69,5.1896]
[1738915143247,94.52039233,192.72,192.68,20.0]
[1738915143573,94.52039233,192.71,192.65,0.063]
[1738915143869,95.49362043,192.71,192.65,0.063]
[1738915144274,12.42039233,192.7,192.66,20.0]
[1738915144571,82.1,192.69,192.66,20.0]
[1738915145647,94.52039233,192.69,192.65,0.063]
[1738915146659,82.1,192.69,192.65,0.063]
[1738915148578,82.1,192.69,192.65,37.67409233]
[1738915148776,82.1,192.69,192.68,12.42039233]
[1738915150072,82.1,192.74,192.68,17.61029233]
[1738915150275,82.1,192.74,192.71,32.42039233]
[1738915151196,82.1,192.74,192.73,20.0]
[1738915152348,82.1,192.74,192.68,18.1647]
[1738915152349,82.1,192.74,192.68,12.42039233]
[1738915152572,94.52039233,192.74,192.67,17.61059233]
[1738915152870,95.49345205,192.73,192.69,20.0]
[1738915153077,94.52039233,192.73,192.69,20.0]
[1738915153252,94.52039233,192.73,192.69,20.063]
[1738915153879,94.52039233,192.73,192.69,0.063]
[1738915155587,82.1,192.73,192.69,0.063]
[1738915155789,82.1,192.72,192.69,0.063]
[1738915156298,82.1,192.72,192.7,20.0]
[1738915156876,82.1,192.72,192.69,0.063]
[1738915157205,82.1,192.72,192.71,20.0]
[1738915157710,82.1,192.72,192.71,25.1891]
[1738915159410,82.1,192.72,192.69,0.063]
[1738915159908,82.1,192.72,192.7,20.0]
[1738915160489,94.52039233,192.71,192.69,0.063]
[1738915160808,82.1,192.71,192.69,0.063]
[1738915161399,94.52039233,192.71,192.69,0.063]
[1738915161581,82.1,192.7,192.69,0.063]
[1738915161783,17.09059233,192.71,192.69,0.063]
[1738915161999,18.06382467,192.71,192.69,0.063]
[1738915162403,12.42039233,192.7,192.69,0.063]
[1738915163607,12.42039233,192.71,192.69,0.063]
[1738915169704,17.09079233,192.71,192.69,0.063]
[1738915170009,0.97327366,192.7,192.69,0.063]
[1738915170514,18.06404873,192.71,192.69,0.063]
[1738915173317,12.42039233,192.71,192.69,0.063]
[1738915174336,13.39359865,192.71,192.69,0.063]
[1738915175195,18.06389865,192.71,192.69,0.063]
[1738915176318,17.09069233,192.71,192.69,0.063]
[1738915181226,12.42039233,192.71,192.69,0.063]
[1738915189831,0.03,192.76,192.7,12.42039233]
[1738915190008,12.42039233,192.75,192.69,0.063]
[1738915190822,12.42039233,192.73,192.69,0.063]
[1738915191027,12.42039233,192.71,192.69,0.063]
[1738915191921,0.97320475,192.72,192.69,0.063]
[1738915192246,12.42039233,192.73,192.69,0.063]
[1738915192247,26.80538989,192.74,192.69,0.063]
[1738915192655,18.06265931,192.75,192.69,0.063]
[1738915193330,12.42039233,192.73,192.69,0.063]
[1738915195058,12.42039233,192.74,192.69,0.063]
[1738915197429,82.1,192.7,192.69,0.063]
[1738915200241,12.42039233,192.75,192.69,0.063]
[1738915200435,82.1,192.74,192.69,0.063]
[1738915202648,51.1999,192.74,192.69,0.063]
[1738915202854,20.984,192.73,192.72,32.42039233]
[1738915203543,20.984,192.73,192.72,20.0]
[1738915204338,20.984,192.73,192.7,12.42039233]
[1738915204534,20.984,192.73,192.72,12.42039233]
[1738915204757,20.984,192.73,192.7,8.2032]
[1738915204971,20.984,192.73,192.72,20.0]
[1738915205661,20.984,192.73,192.72,32.42039233]
[1738915206466,20.984,192.73,192.72,37.60919233]
[1738915207346,0.03,192.76,192.72,37.60919233]
[1738915207549,0.03,192.76,192.75,12.42039233]
[1738915208545,0.03,192.76,192.75,17.60839233]
[1738915209159,0.0001,192.76,192.75,17.60839233]
[1738915210143,0.0001,192.76,192.75,23.88549233]
[1738915210350,0.0001,192.76,192.75,29.30196233]
[1738915210870,0.0001,192.76,192.75,27.92549233]
[1738915213366,0.0001,192.76,192.72,17.60899233]
[1738915213681,0.0001,192.76,192.72,5.1886]
[1738915214052,0.0001,192.76,192.74,20.0]
[1738915214380,0.0001,192.76,192.7,7.5858]
[1738915214381,12.42049233,192.76,192.69,0.063]
[1738915214570,12.42039233,192.72,192.69,0.063]
[1738915215047,12.42039233,192.72,192.7,20.0]
[1738915215570,12.42039233,192.72,192.69,0.063]
[1738915215774,12.42039233,192.72,192.69,20.063]
[1738915215965,13.39346736,192.72,192.69,0.063]
[1738915216273,12.42039233,192.7,192.69,0.063]
[1738915216443,18.58310247,192.7,192.69,0.063]
[1738915216864,33.514551,192.7,192.69,0.063]
[1738915217853,0.12549,192.68,192.65,0.063]
[1738915218077,26.20871086,192.66,192.65,0.063]
[1738915218458,31.39911086,192.66,192.65,0.063]
[1738915219368,25.83224086,192.66,192.65,0.063]
[1738915220382,26.80570492,192.66,192.65,0.063]
[1738915221281,27.18217492,192.66,192.65,0.063]
[1738915221867,28.18217492,192.66,192.65,0.063]
[1738915222266,27.18217492,192.66,192.65,0.063]
[1738915222965,27.05668492,192.66,192.65,0.063]
[1738915223278,32.24708492,192.66,192.65,0.063]
[1738915223585,32.37257492,192.66,192.65,0.063]
[1738915223754,34.37257492,192.66,192.65,0.063]
[1738915224482,2.0,192.62,192.6,0.063]
[1738915224659,34.00096981,192.61,192.6,0.063]
[1738915224854,85.68253913,192.61,192.6,0.063]
[1738915225050,15.78831853,192.58,192.56,0.063]
[1738915225368,15.78831853,192.58,192.57,0.0001]
[1738915225369,29.18283209,192.58,192.57,0.0001]
[1738915226365,15.78831853,192.57,192.56,0.0001]
[1738915226665,40.43308578,192.57,192.56,0.0001]
[1738915226863,40.43308578,192.57,192.49,0.063]
[1738915226864,0.25098,192.5,192.49,0.063]
[1738915227062,55.66657112,192.5,192.49,0.0001]
[1738915227254,55.66657112,192.5,192.45,0.063]
[1738915227255,0.12549,192.46,192.45,0.063]
[1738915227454,33.96385952,192.46,192.45,0.063]
[1738915227656,35.21483952,192.46,192.45,0.063]
[1738915228255,34.21483952,192.46,192.45,0.063]
[1738915228583,34.08934952,192.46,192.45,0.063]
[1738915229176,19.45186725,192.46,192.45,0.063]
[1738915229770,32.86371578,192.46,192.45,0.063]
[1738915230367,33.24018578,192.46,192.45,0.063]
[1738915230694,0.25098,192.41,192.39,0.063]
[1738915230903,25.8752314,192.4,192.39,0.063]
[1738915231207,39.28707993,192.4,192.39,0.063]
[1738915232596,58.86443718,192.4,192.39,0.063]
[1738915232771,39.28707993,192.4,192.39,0.063]
[1738915233821,40.91157993,192.4,192.39,0.063]
[1738915233998,40.91157993,192.4,192.28,0.063]
[1738915233999,0.37647,192.35,192.28,0.063]
[1738915234165,19.45186725,192.29,192.28,0.063]
[1738915235081,33.83897739,192.29,192.28,0.063]
[1738915235282,34.21544739,192.29,192.28,0.063]
[1738915236197,48.13894739,192.29,192.28,0.063]
[1738915236571,49.13894739,192.29,192.28,0.063]
[1738915236885,0.25098,192.22,192.18,0.063]
[1738915237088,19.45186725,192.19,192.18,0.063]
[1738915237280,32.86371578,192.19,192.18,0.063]
[1738915237701,33.11469578,192.19,192.18,0.063]
[1738915237876,35.21617478,192.19,192.18,0.063]
[1738915238077,41.41927478,192.19,192.18,0.063]
[1738915238302,0.25098,192.14,192.08,20.063]
[1738915238502,19.45186725,192.1,192.08,20.063]
[1738915238711,19.45186725,192.1,192.08,0.063]
[1738915238897,19.45186725,192.17,192.09,19.45186725]
[1738915239405,19.45186725,192.17,192.08,0.063]
[1738915239406,19.45186725,192.15,192.08,0.063]
[1738915239611,19.45186725,192.13,192.08,0.063]
[1738915239786,19.45186725,192.13,192.08,20.063]
[1738915240105,19.45186725,192.15,192.09,5.2057]
[1738915240409,19.45186725,192.13,192.08,0.063]
[1738915240590,19.45186725,192.15,192.09,5.2058]
[1738915241108,19.45186725,192.13,192.08,20.063]
[1738915241328,0.25098,192.1,192.08,0.063]
[1738915241619,14.38819578,192.1,192.08,0.063]
[1738915241791,13.41184853,192.1,192.08,0.063]
[1738915241990,20.42814268,192.09,192.08,0.063]
[1738915242210,40.42226121,192.09,192.08,0.063]
[1738915242397,40.42226121,192.09,192.03,0.063]
[1738915242398,14.78831853,192.08,192.03,0.063]
[1738915242686,32.86371578,192.04,192.03,0.063]
[1738915243087,19.45186725,192.04,192.03,0.063]
[1738915243287,33.11469578,192.04,192.03,0.063]
[1738915243697,35.21692529,192.04,192.03,0.063]
[1738915243895,35.21692529,192.04,191.87,24.66366725]
[1738915243896,0.12549,192.0,191.87,24.66366725]
[1738915244097,19.45186725,191.94,191.87,24.66366725]
[1738915244404,19.45186725,191.9,191.81,19.45186725]
[1738915244623,0.97708574,191.93,191.86,20.0]
[1738915244824,31.30834456,191.94,191.88,20.0]
[1738915244981,13.41184853,191.91,191.88,20.0]
[1738915245189,13.41184853,191.91,191.83,31.30834456]
[1738915245419,13.41184853,191.89,191.88,0.063]
[1738915245715,32.28564995,191.9,191.88,0.063]
[1738915246011,31.30834456,191.92,191.88,0.063]
[1738915246202,31.30834456,191.92,191.88,20.063]
[1738915246517,13.41184853,191.91,191.88,20.063]
[1738915246727,13.66282853,191.89,191.88,0.063]
[1738915247095,13.41184853,191.89,191.88,0.063]
[1738915247486,31.30834456,191.9,191.88,0.063]
[1738915247693,31.30834456,191.94,191.88,20.063]
[1738915248106,31.30834456,191.94,191.88,25.2744]
[1738915248692,31.30834456,191.94,191.88,5.2744]
[1738915248909,31.30834456,191.96,191.91,20.0]
[1738915249101,31.30834456,192.0,191.93,31.30834456]
[1738915249303,32.28515542,192.02,191.93,31.30834456]
[1738915249510,0.97681086,191.99,191.93,31.30834456]
[1738915249714,44.72019309,192.0,191.93,31.30834456]
[1738915249992,32.28512577,192.04,191.98,20.0]
[1738915250407,32.28512577,192.04,191.98,25.2088]
[1738915250605,32.28499421,192.06,191.98,25.2088]
[1738915250820,5.206,192.09,192.01,31.30834456]